[Event "British Rapidplay Championship 2023"]
[Site "Mercure Bradford, Bankfield Hotel"]
[Date "2023.04.16"]
[Round "8.13"]
[White "Buckley, Colm"]
[Black "Lau, Luke"]
[Result "1/2-1/2"]
[TimeControl "15 minutes plus 10 seconds per move"]
[WhiteElo "1870"]
[BlackElo "1917"]

1. d4 {[%clk 00:15:19]} d5 {[%clk 00:15:19]} {[%emt 00:00:02]} 2. c4 {[%clk
00:15:27]} {[%emt 00:00:01]} e6 {[%clk 00:15:28]} {[%emt 00:00:01]} 3. Nc3
{[%clk 00:15:35]} {[%emt 00:00:02]} Nf6 {[%clk 00:15:37]} {[%emt 00:00:01]} 4.
Nf3 {[%clk 00:15:42]} {[%emt 00:00:02]} c5 {[%clk 00:15:45]} {[%emt 00:00:02]}
5. cxd5 {[%clk 00:15:29]} {[%emt 00:00:23]} Nxd5 {[%clk 00:15:54]} {[%emt
00:00:01]} 6. e3 {[%clk 00:13:45]} {[%emt 00:01:54]} cxd4 {[%clk 00:16:02]}
{[%emt 00:00:02]} 7. Nxd4 {[%clk 00:13:21]} {[%emt 00:00:33]} Nxc3 {[%clk
00:15:38]} {[%emt 00:00:34]} 8. bxc3 {[%clk 00:13:28]} {[%emt 00:00:03]} Be7
{[%clk 00:15:38]} {[%emt 00:00:10]} 9. Be2 {[%clk 00:13:12]} {[%emt 00:00:26]}
O-O {[%clk 00:15:45]} {[%emt 00:00:03]} 10. O-O {[%clk 00:13:18]} {[%emt
00:00:03]} e5 {[%clk 00:15:20]} {[%emt 00:00:36]} 11. Nb5 {[%clk 00:12:23]}
{[%emt 00:01:04]} Nc6 {[%clk 00:15:04]} {[%emt 00:00:25]} 12. Ba3 {[%clk
00:11:52]} {[%emt 00:00:41]} Bxa3 {[%clk 00:14:37]} {[%emt 00:00:38]} 13. Nxa3
{[%clk 00:12:01]} {[%emt 00:00:02]} Be6 {[%clk 00:14:25]} {[%emt 00:00:21]} 14.
Bc4 {[%clk 00:11:00]} {[%emt 00:01:10]} Qxd1 {[%clk 00:12:02]} {[%emt
00:02:34]} 15. Rfxd1 {[%clk 00:10:52]} {[%emt 00:00:17]} Bxc4 {[%clk 00:12:11]}
{[%emt 00:00:02]} 16. Nxc4 {[%clk 00:11:01]} {[%emt 00:00:02]} Rfd8 {[%clk
00:12:20]} 17. Kf1 {[%clk 00:10:16]} {[%emt 00:00:54]} Kf8 {[%clk 00:11:46]}
{[%emt 00:00:44]} 18. Ke2 {[%clk 00:10:06]} {[%emt 00:00:20]} Ke7 {[%clk
00:11:50]} {[%emt 00:00:06]} 19. f3 {[%clk 00:08:25]} {[%emt 00:01:51]} f6
{[%clk 00:11:48]} {[%emt 00:00:12]} 20. e4 {[%clk 00:08:27]} {[%emt 00:00:09]}
Ke6 {[%clk 00:09:53]} {[%emt 00:02:06]} 21. Ne3 {[%clk 00:07:44]} {[%emt
00:00:52]} Ne7 {[%clk 00:09:55]} {[%emt 00:00:07]} 22. Rab1 {[%clk 00:06:37]}
{[%emt 00:01:17]} Rxd1 {[%clk 00:09:47]} {[%emt 00:00:18]} 23. Rxd1 {[%clk
00:06:28]} {[%emt 00:00:19]} Rc8 {[%clk 00:09:51]} {[%emt 00:00:05]} 24. Rc1
{[%clk 00:06:11]} {[%emt 00:00:28]} b6 {[%clk 00:09:49]} {[%emt 00:00:13]} 25.
Rc2 {[%clk 00:05:56]} {[%emt 00:00:25]} Nc6 {[%clk 00:09:49]} {[%emt 00:00:11]}
26. h4 {[%clk 00:05:32]} {[%emt 00:00:33]} h5 {[%clk 00:09:19]} {[%emt
00:00:40]} 27. Kd3 {[%clk 00:05:08]} {[%emt 00:00:35]} g6 {[%clk 00:07:48]}
{[%emt 00:01:41]} 28. g3 {[%clk 00:04:53]} {[%emt 00:00:25]} Rd8+ {[%clk
00:07:27]} {[%emt 00:00:31]} 29. Ke2 {[%clk 00:04:54]} {[%emt 00:00:08]} Na5
{[%clk 00:07:24]} {[%emt 00:00:13]} 30. Nd5 {[%clk 00:04:21]} {[%emt 00:00:42]}
Rc8 {[%clk 00:07:23]} {[%emt 00:00:12]} 31. Ne3 {[%clk 00:04:07]} {[%emt
00:00:25]} f5 {[%clk 00:07:10]} {[%emt 00:00:23]} 32. Kd3 {[%clk 00:03:22]}
{[%emt 00:00:55]} Rd8+ {[%clk 00:07:04]} {[%emt 00:00:16]} 33. Ke2 {[%clk
00:03:15]} {[%emt 00:00:17]} fxe4 {[%clk 00:06:59]} {[%emt 00:00:16]} 34. fxe4
{[%clk 00:03:18]} {[%emt 00:00:06]} Nb7 {[%clk 00:06:54]} {[%emt 00:00:15]} 35.
Nd5 {[%clk 00:03:08]} {[%emt 00:00:20]} Nc5 {[%clk 00:06:54]} {[%emt 00:00:10]}
36. Rd2 {[%clk 00:01:29]} {[%emt 00:01:49]} Rc8 {[%clk 00:04:53]} {[%emt
00:02:10]} 37. Ke3 {[%clk 00:01:18]} {[%emt 00:00:21]} Nb7 {[%clk 00:04:59]}
{[%emt 00:00:05]} 38. Rc2 {[%clk 00:00:56]} {[%emt 00:00:32]} Nd6 {[%clk
00:04:59]} {[%emt 00:00:10]} 39. Kd3 {[%clk 00:00:23]} {[%emt 00:00:43]} Rf8
{[%clk 00:04:54]} {[%emt 00:00:14]} 40. Re2 {[%clk 00:00:18]} {[%emt 00:00:16]}
Rf3+ {[%clk 00:04:55]} {[%emt 00:00:09]} 41. Re3 {[%clk 00:00:27]} {[%emt
00:00:01]} Rf2 {[%clk 00:05:03]} {[%emt 00:00:02]} 42. Re2 {[%clk 00:00:35]}
{[%emt 00:00:02]} Rxe2 {[%clk 00:05:03]} {[%emt 00:00:09]} 43. Kxe2 {[%clk
00:00:44]} Nxe4 {[%clk 00:05:11]} {[%emt 00:00:03]} 44. Nc7+ {[%clk 00:00:20]}
{[%emt 00:00:34]} Kd7 {[%clk 00:05:16]} {[%emt 00:00:04]} 45. Nb5 {[%clk
00:00:24]} {[%emt 00:00:07]} a6 {[%clk 00:05:25]} {[%emt 00:00:02]} 46. Kf3
{[%clk 00:00:18]} {[%emt 00:00:16]} axb5 {[%clk 00:03:29]} {[%emt 00:02:06]} 47.
Kxe4 {[%clk 00:00:26]} {[%emt 00:00:02]} Kd6 {[%clk 00:03:38]} {[%emt
00:00:01]} 48. a3 {[%clk 00:00:24]} {[%emt 00:00:12]} Ke6 {[%clk 00:03:42]}
{[%emt 00:00:05]} 49. Ke3 {[%clk 00:00:24]} {[%emt 00:00:11]} Kd5 {[%clk
00:03:51]} {[%emt 00:00:01]} 50. Kd3 {[%clk 00:00:33]} e4+ {[%clk 00:03:37]}
{[%emt 00:00:24]} 51. Ke3 {[%clk 00:00:42]} {[%emt 00:00:01]} Kc4 {[%clk
00:03:46]} {[%emt 00:00:01]} 52. Kxe4 {[%clk 00:00:51]} Kxc3 {[%clk 00:03:54]}
{[%emt 00:00:02]} 53. Kf4 {[%clk 00:01:00]} Kb3 {[%clk 00:04:01]} {[%emt
00:00:04]} 54. Kg5 {[%clk 00:01:09]} Kxa3 {[%clk 00:04:10]} {[%emt 00:00:02]}
55. Kxg6 {[%clk 00:01:18]} b4 {[%clk 00:04:18]} {[%emt 00:00:02]} 56. Kxh5
{[%clk 00:01:22]} {[%emt 00:00:06]} b3 {[%clk 00:04:28]} 57. g4 {[%clk
00:01:31]} {[%emt 00:00:01]} b2 {[%clk 00:04:37]} {[%emt 00:00:01]} 58. g5
{[%clk 00:01:39]} b1=Q {[%clk 00:04:44]} {[%emt 00:00:03]} 59. Kh6 {[%clk
00:01:48]} {[%emt 00:00:01]} Qf5 {[%clk 00:04:30]} {[%emt 00:00:24]} 60. h5
{[%clk 00:01:21]} {[%emt 00:00:37]} b5 {[%clk 00:04:30]} {[%emt 00:00:10]} 61.
g6 {[%clk 00:01:27]} {[%emt 00:00:03]} b4 {[%clk 00:04:39]} {[%emt 00:00:02]}
62. g7 {[%clk 00:01:28]} {[%emt 00:00:09]} Qf7 {[%clk 00:04:47]} {[%emt
00:00:02]} 63. g8=Q {[%clk 00:01:28]} {[%emt 00:00:10]} Qf4+ {[%clk 00:04:44]}
{[%emt 00:00:13]} 64. Qg5 {[%emt 00:00:35]} Qd6+ {[%clk 00:04:35]} 65. Qg6
{[%clk 00:01:25]} {[%emt 00:00:07]} Qf8+ {[%clk 00:03:59]} {[%emt 00:00:46]} 66.
Qg7 {[%clk 00:01:28]} {[%emt 00:00:07]} Qd6+ {[%clk 00:02:37]} {[%emt
00:01:33]} 67. Qg6 {[%clk 00:01:29]} {[%emt 00:00:09]} Qd2+ {[%clk 00:02:19]}
{[%emt 00:00:29]} 68. Qg5 {[%clk 00:01:35]} {[%emt 00:00:03]} Qc3 {[%clk
00:02:19]} {[%emt 00:00:10]} 69. Qa5+ {[%clk 00:01:13]} {[%emt 00:00:32]} Kb2
{[%clk 00:02:27]} {[%emt 00:00:01]} 70. Kg6 {[%clk 00:00:42]} {[%emt 00:00:40]}
Qc6+ {[%clk 00:02:11]} {[%emt 00:00:27]} 71. Kg7 {[%clk 00:00:35]} {[%emt
00:00:17]} Qd7+ {[%clk 00:02:13]} {[%emt 00:00:08]} 72. Kg8 {[%clk 00:00:17]}
{[%emt 00:00:29]} Qe6+ {[%clk 00:02:13]} {[%emt 00:00:10]} 73. Kg7 {[%clk
00:00:21]} {[%emt 00:00:05]} Qe7+ {[%clk 00:02:18]} {[%emt 00:00:06]} 74. Kg8
{[%clk 00:00:26]} {[%emt 00:00:05]} Qe6+ {[%clk 00:02:06]} {[%emt 00:00:22]} 75.
Kg7 {[%clk 00:00:34]} {[%emt 00:00:02]} Qg4+ {[%clk 00:02:13]} {[%emt
00:00:02]} 76. Kf6 {[%clk 00:00:29]} {[%emt 00:00:15]} b3 {[%clk 00:01:47]}
{[%emt 00:00:37]} 77. Qd2+ {[%clk 00:00:14]} {[%emt 00:00:25]} Ka3 {[%clk
00:01:49]} {[%emt 00:00:07]} 78. Qa5+ {[%clk 00:00:21]} {[%emt 00:00:04]} Qa4
{[%clk 00:01:57]} {[%emt 00:00:02]} 79. Qc5+ {[%clk 00:00:26]} {[%emt
00:00:04]} Ka2 {[%clk 00:01:58]} {[%emt 00:00:09]} 80. h6 {[%clk 00:00:19]}
{[%emt 00:00:17]} b2 {[%clk 00:01:55]} {[%emt 00:00:13]} 81. Qd5+ {[%clk
00:00:22]} {[%emt 00:00:07]} Ka1 {[%clk 00:01:57]} {[%emt 00:00:08]} 82. Qe5
{[%clk 00:00:22]} {[%emt 00:00:11]} Qc6+ {[%clk 00:01:40]} {[%emt 00:00:28]} 83.
Kg7 {[%clk 00:00:28]} {[%emt 00:00:03]} Ka2 {[%clk 00:01:40]} {[%emt 00:00:10]}
84. Qa5+ {[%clk 00:00:28]} {[%emt 00:00:09]} Kb3 {[%clk 00:01:48]} {[%emt
00:00:01]} 85. Qe1 {[%clk 00:00:16]} {[%emt 00:00:23]} Qg2+ {[%clk 00:01:40]}
{[%emt 00:00:18]} 86. Kf8 {[%clk 00:00:17]} {[%emt 00:00:09]} Qf3+ {[%clk
00:01:46]} {[%emt 00:00:04]} 87. Kg8 {[%clk 00:00:17]} {[%emt 00:00:09]} Qg4+
{[%clk 00:01:52]} {[%emt 00:00:04]} 88. Kf7 {[%clk 00:00:20]} {[%emt 00:00:07]}
Qf5+ {[%clk 00:01:57]} {[%emt 00:00:05]} 89. Kg7 {[%clk 00:00:22]} {[%emt
00:00:09]} Qg5+ {[%clk 00:02:06]} {[%emt 00:00:01]} 90. Kh7 {[%clk 00:00:24]}
{[%emt 00:00:07]} Qc1 {[%clk 00:01:25]} {[%emt 00:00:51]} 91. Qe6+ {[%clk
00:00:31]} {[%emt 00:00:03]} Kc2 {[%clk 00:01:15]} {[%emt 00:00:21]} 92. Qe4+
{[%clk 00:00:28]} {[%emt 00:00:13]} Kd1 {[%clk 00:01:14]} {[%emt 00:00:10]} 93.
Qd3+ {[%clk 00:00:26]} {[%emt 00:00:12]} Qd2 {[%clk 00:01:10]} {[%emt
00:00:14]} 94. Qf1+ {[%clk 00:00:27]} {[%emt 00:00:10]} Kc2 {[%clk 00:01:18]}
{[%emt 00:00:02]} 95. Qc4+ {[%clk 00:00:30]} {[%emt 00:00:07]} Kd1 {[%clk
00:01:05]} {[%emt 00:00:23]} 96. Qf1+ {[%clk 00:00:35]} {[%emt 00:00:05]} Qe1
{[%clk 00:01:13]} {[%emt 00:00:03]} 97. Qd3+ {[%clk 00:00:30]} {[%emt
00:00:15]} Kc1 {[%clk 00:01:20]} {[%emt 00:00:03]} 98. Qc4+ {[%clk 00:00:37]}
{[%emt 00:00:03]} Kb1 {[%clk 00:01:19]} {[%emt 00:00:10]} 99. Qd3+ {[%emt
00:00:37]} Ka2 {[%clk 00:01:23]} {[%emt 00:00:04]} 100. Qc4+ {[%clk 00:00:16]}
{[%emt 00:00:06]} Ka3 {[%clk 00:01:29]} {[%emt 00:00:05]} 101. Qa6+ {[%clk
00:00:19]} {[%emt 00:00:07]} Kb3 {[%clk 00:01:22]} {[%emt 00:00:16]} 102. Qb5+
{[%clk 00:00:20]} {[%emt 00:00:10]} Ka3 {[%clk 00:01:14]} {[%emt 00:00:17]} 103.
Qa6+ {[%clk 00:00:23]} {[%emt 00:00:08]} Kb4 {[%clk 00:01:17]} {[%emt
00:00:06]} 104. Qb6+ {[%clk 00:00:22]} {[%emt 00:00:11]} Ka3 {[%clk 00:01:20]}
{[%emt 00:00:07]} 105. Qa6+ {[%clk 00:00:30]} {[%emt 00:00:03]} 1/2-1/2

[Event "British Rapidplay Championship 2023"]
[Site "Mercure Bradford, Bankfield Hotel"]
[Date "2023.04.16"]
[Round "8.15"]
[White "Walker, David J"]
[Black "Bak, Andrew"]
[Result "1-0"]
[TimeControl "15 minutes plus 10 seconds per move"]
[WhiteElo "2250"]
[BlackElo "1959"]

1. c4 {[%clk 00:15:17]} {[%emt 00:00:03]} Nf6 {[%clk 00:15:17]} {[%emt
00:00:04]} 2. Nc3 {[%clk 00:15:25]} {[%emt 00:00:01]} g6 {[%clk 00:15:17]}
{[%emt 00:00:10]} 3. g3 {[%clk 00:15:31]} {[%emt 00:00:05]} Bg7 {[%clk
00:15:24]} {[%emt 00:00:03]} 4. Bg2 {[%clk 00:15:39]} {[%emt 00:00:01]} O-O
{[%clk 00:15:31]} {[%emt 00:00:04]} 5. e4 {[%clk 00:15:47]} {[%emt 00:00:01]}
d6 {[%clk 00:15:36]} {[%emt 00:00:05]} 6. Nge2 {[%clk 00:15:56]} {[%emt
00:00:02]} e5 {[%clk 00:15:35]} {[%emt 00:00:10]} 7. O-O {[%clk 00:16:01]}
{[%emt 00:00:05]} a5 {[%clk 00:15:34]} {[%emt 00:00:12]} 8. d3 {[%clk
00:15:57]} {[%emt 00:00:14]} c6 {[%clk 00:15:18]} {[%emt 00:00:26]} 9. h3
{[%clk 00:15:47]} {[%emt 00:00:19]} Na6 {[%clk 00:13:32]} {[%emt 00:01:57]} 10.
Be3 {[%clk 00:15:49]} {[%emt 00:00:07]} Nh5 {[%clk 00:10:53]} {[%emt 00:02:49]}
11. g4 {[%clk 00:15:10]} {[%emt 00:00:49]} Nf6 {[%clk 00:10:56]} {[%emt
00:00:08]} 12. Ng3 {[%clk 00:15:16]} {[%emt 00:00:04]} Be6 {[%clk 00:10:23]}
{[%emt 00:00:42]} 13. g5 {[%clk 00:10:20]} {[%emt 00:05:06]} Nd7 {[%clk
00:09:56]} {[%emt 00:00:37]} 14. Qd2 {[%clk 00:09:24]} {[%emt 00:01:07]} f5
{[%clk 00:08:36]} {[%emt 00:01:29]} 15. exf5 {[%clk 00:08:00]} {[%emt
00:01:34]} gxf5 {[%emt 00:00:37]} 16. f4 {[%clk 00:08:03]} Ndc5 {[%clk
00:06:55]} {[%emt 00:01:31]} 17. d4 {[%clk 00:05:23]} {[%emt 00:02:51]} exd4
{[%clk 00:05:55]} {[%emt 00:01:10]} 18. Bxd4 {[%clk 00:05:31]} {[%emt
00:00:02]} Qd7 {[%clk 00:04:55]} {[%emt 00:01:10]} 19. Nh5 {[%clk 00:05:10]}
{[%emt 00:00:30]} Bxd4+ {[%clk 00:02:00]} {[%emt 00:03:05]} 20. Qxd4 {[%clk
00:05:19]} {[%emt 00:00:01]} Nb4 {[%clk 00:01:43]} {[%emt 00:00:27]} 21. Rad1
{[%clk 00:04:16]} {[%emt 00:01:13]} Nc2 {[%clk 00:00:41]} {[%emt 00:01:13]} 22.
Qd2 {[%clk 00:03:12]} {[%emt 00:01:14]} Nb4 {[%clk 00:00:41]} {[%emt 00:00:10]}
23. Nf6+ {[%clk 00:02:07]} {[%emt 00:01:14]} Rxf6 {[%clk 00:00:48]} {[%emt
00:00:04]} 24. gxf6 {[%clk 00:02:16]} {[%emt 00:00:01]} Nbd3 {[%clk 00:00:51]}
{[%emt 00:00:08]} 25. b3 {[%clk 00:02:00]} {[%emt 00:00:25]} Qf7 {[%clk
00:00:59]} 26. Qe3 {[%clk 00:02:02]} {[%emt 00:00:09]} Qxf6 {[%clk 00:00:35]}
{[%emt 00:00:35]} 27. Rxd3 {[%clk 00:01:59]} {[%emt 00:00:12]} Nxd3 {[%clk
00:00:43]} {[%emt 00:00:02]} 28. Qxd3 {[%clk 00:02:08]} Rd8 {[%clk 00:00:42]}
{[%emt 00:00:10]} 29. Kh2 {[%clk 00:02:14]} {[%emt 00:00:04]} Kf7 {[%clk
00:00:24]} {[%emt 00:00:28]} 30. Ne2 {[%clk 00:01:59]} {[%emt 00:00:25]} d5
{[%clk 00:00:27]} {[%emt 00:00:07]} 31. cxd5 {[%clk 00:01:52]} {[%emt
00:00:17]} Bxd5 {[%clk 00:00:36]} {[%emt 00:00:02]} 32. Bxd5+ {[%clk 00:01:56]}
{[%emt 00:00:06]} Rxd5 {[%clk 00:00:45]} 33. Qe3 {[%clk 00:01:19]} {[%emt
00:00:47]} Qd6 {[%clk 00:00:41]} {[%emt 00:00:14]} 34. Qf3 {[%clk 00:00:56]}
{[%emt 00:00:32]} Rd2 {[%clk 00:00:40]} {[%emt 00:00:12]} 35. Rf2 {[%clk
00:00:55]} {[%emt 00:00:11]} Rxa2 {[%clk 00:00:38]} {[%emt 00:00:12]} 36. Ng3
{[%clk 00:01:00]} {[%emt 00:00:05]} Rxf2+ {[%clk 00:00:32]} {[%emt 00:00:16]}
37. Qxf2 {[%clk 00:01:09]} Qd5 {[%clk 00:00:38]} {[%emt 00:00:04]} 38. Qc2
{[%clk 00:01:07]} {[%emt 00:00:12]} b5 {[%clk 00:00:35]} {[%emt 00:00:14]} 39.
Nxf5 {[%clk 00:01:08]} {[%emt 00:00:08]} c5 {[%clk 00:00:38]} {[%emt 00:00:07]}
40. Ne3 {[%clk 00:01:09]} {[%emt 00:00:08]} Qf3 {[%clk 00:00:32]} {[%emt
00:00:16]} 41. Qxh7+ {[%clk 00:01:14]} {[%emt 00:00:06]} Kf8 {[%clk 00:00:41]}
{[%emt 00:00:01]} 42. Qf5+ {[%clk 00:01:19]} {[%emt 00:00:05]} Kg8 {[%clk
00:00:50]} {[%emt 00:00:01]} 43. Ng4 {[%clk 00:01:16]} {[%emt 00:00:12]} Qxb3
{[%clk 00:00:41]} {[%emt 00:00:20]} 44. Nf6+ {[%clk 00:01:18]} {[%emt
00:00:08]} Kf7 {[%clk 00:00:40]} {[%emt 00:00:11]} 45. Nd5+ {[%clk 00:01:23]}
{[%emt 00:00:04]} Ke8 {[%clk 00:00:36]} {[%emt 00:00:14]} 46. Qe6+ {[%clk
00:01:31]} {[%emt 00:00:02]} Kf8 {[%clk 00:00:42]} {[%emt 00:00:05]} 47. Qe7+
{[%clk 00:01:26]} {[%emt 00:00:15]} Kg8 {[%clk 00:00:51]} {[%emt 00:00:01]} 48.
Nf6+ {[%clk 00:01:23]} {[%emt 00:00:01]} 1-0